lending/lending_fUSD_20240410
["ID","MTS","AMOUNT","RATE_DAILY","PERIOD"]
[322067906,1712739068163,-500.0,0.0002267,2]
[322067907,1712739068173,-500.0,0.0002267,2]
[322067908,1712739068183,-500.0,0.0002267,2]
[322067909,1712739068192,-513.89,0.0002267,2]
[322067910,1712739068202,-677.27,0.0002267,2]
[322067911,1712739068212,-885.74,0.0002267,2]
[322067912,1712739068221,-1445.14,0.0002267,2]
[322067913,1712739068231,-350.12034343,0.0002267,2]
[322067914,1712739068240,-753.45,0.0002267,2]
[322067915,1712739068249,-500.0,0.0002267,2]
[322067916,1712739068259,-500.0,0.0002267,2]
[322067917,1712739068268,-500.0,0.0002267,2]
[322067918,1712739068278,-4935.81,0.0002267,2]
[322067919,1712739068288,-728.63,0.0002267,2]
[322067920,1712739068297,-500.0,0.0002267,2]
[322067921,1712739068308,-545.78,0.0002267,2]
[322067922,1712739068318,-500.0,0.0002267,2]
[322067923,1712739068329,-934.77,0.0002267,2]
[322067924,1712739068339,-500.0,0.0002267,2]
[322067925,1712739068349,-500.0,0.0002267,2]
[322067926,1712739068359,-537.35,0.0002267,2]
[322067927,1712739068368,-500.0,0.0002267,2]
[322067928,1712739068377,-515.08,0.0002267,2]
[322067929,1712739068387,-532.15137175,0.0002267,2]
[322067930,1712739068396,-631.39,0.0002267,2]
[322067931,1712739068406,-2573.74,0.0002267,2]
[322067932,1712739068415,-500.0,0.0002267,2]
[322067933,1712739068424,-632.78,0.0002267,2]
[322067934,1712739068433,-500.0,0.0002267,2]
[322067935,1712739068443,-857.64,0.0002267,2]
[322067936,1712739068453,-500.0,0.0002267,2]
[322067937,1712739068463,-500.0,0.0002267,2]
[322067938,1712739068473,-500.0,0.0002267,2]
[322067939,1712739068483,-526.43,0.0002267,2]
[322067940,1712739068492,-500.0,0.0002267,2]
[322067941,1712739068502,-710.81,0.0002267,2]
[322067942,1712739068512,-500.0,0.0002267,2]
[322067943,1712739068522,-753.09,0.0002267,2]
[322067944,1712739068532,-500.0,0.0002267,2]
[322067945,1712739068542,-500.0,0.0002267,2]
[322067946,1712739068552,-1404.33,0.0002267,2]
[322067947,1712739068562,-500.0,0.0002267,2]
[322067948,1712739068572,-500.0,0.0002267,2]
[322067949,1712739068582,-495.86534136,0.0002267,2]
[322067950,1712739068593,-500.0,0.0002267,2]
[322067951,1712739068602,-500.0,0.0002267,2]
[322067952,1712739068612,-627.71,0.0002267,2]
[322067953,1712739068622,-1405.94,0.0002267,2]
[322067954,1712739068632,-530.64,0.0002267,2]
[322067955,1712739068642,-230.447379,0.0002274,2]
[322067956,1712739068652,-293.0,0.00022741,2]
[322067957,1712739068661,-802.49,0.00022746,2]
[322067958,1712739068671,-1567.52,0.00022746,2]
[322067959,1712739068680,-500.0,0.00022746,2]
[322067960,1712739068690,-500.0,0.00022746,2]
[322067961,1712739068701,-500.0,0.00022746,2]
[322067962,1712739068710,-500.0,0.00022746,2]
[322067963,1712739068719,-500.0,0.00022746,2]
[322067964,1712739068731,-429.35412327,0.00022746,2]
[322067965,1712739068741,-500.0,0.00022746,2]
[322067966,1712739068752,-1177.39,0.00022746,2]
[322067967,1712739068761,-996.62,0.00022746,2]
[322067968,1712739068772,-6692.18,0.00022746,2]
[322067969,1712739068783,-1135.82,0.00022746,2]
[322067970,1712739068792,-973.83,0.00022746,2]
[322067971,1712739068802,-10415.18,0.00022746,2]
[322067972,1712739068812,-500.0,0.00022746,2]
[322067973,1712739068830,-500.0,0.00022746,2]
[322067974,1712739068840,-700.0,0.0002282,2]
[322067975,1712739068852,-152.0,0.00022862,4]
[322067976,1712739068862,-181.0,0.0002292,2]
[322067977,1712739068875,-314.43041614,0.0002292,2]
[322067978,1712739068888,-500.0,0.00022943,2]
[322067979,1712739068898,-500.0,0.00022943,2]
[322067980,1712739068908,-500.0,0.00022943,2]
[322067981,1712739068918,-500.0,0.00022943,2]
[322067982,1712739068928,-500.0,0.00022943,2]
[322067983,1712739068937,-946.69,0.00022943,2]
[322067984,1712739068947,-1419.29,0.00022943,2]
[322067985,1712739068963,-500.0,0.00022943,2]
[322067986,1712739068972,-625.16,0.00022943,2]
[322067987,1712739068982,-1482.35,0.00022943,2]
[322067988,1712739068992,-500.0,0.00022943,2]
[322067989,1712739069001,-500.0,0.00022943,2]
[322067990,1712739069011,-861.14,0.00022943,2]
[322067991,1712739069032,-500.0,0.00022943,2]
[322067992,1712739069048,-528.57,0.00022943,2]
[322067993,1712739069062,-2120.71,0.00022943,2]
[322067994,1712739069072,-552.2,0.00022943,2]
[322067995,1712739069082,-500.0,0.00022943,2]
[322067996,1712739069092,-2408.96,0.00022943,2]
[322067997,1712739069101,-1276.57,0.00022943,2]
[322067998,1712739069113,-1217.14,0.00022943,2]
[322067999,1712739069123,-2123.86,0.00022943,2]
[322068000,1712739069133,-511.31,0.00022943,2]
[322068001,1712739069142,-572.02,0.00022943,2]
[322068002,1712739069150,-374.041212,0.00022943,2]
[322068003,1712739069159,-742.1,0.00022943,2]
[322068004,1712739069169,-1137.02,0.00022943,2]
[322068005,1712739069178,-1754.38,0.00022943,2]
[322068006,1712739069187,-984.81,0.00022943,2]
[322068007,1712739069199,-500.0,0.00022943,2]
[322068008,1712739069208,-612.58,0.00022943,2]
[322068009,1712739069218,-619.53,0.00022943,2]
[322068010,1712739069228,-500.0,0.00022943,2]
[322068011,1712739069238,-530.44,0.00022943,2]
[322068012,1712739069247,-1083.32,0.00022943,2]
[322068013,1712739069256,-500.0,0.00022943,2]
[322068014,1712739069266,-765.23,0.00022943,2]
[322068015,1712739069275,-500.0,0.00022943,2]
[322068016,1712739069285,-500.0,0.00022943,2]
[322068017,1712739069294,-1986.39,0.00022943,2]
[322068018,1712739069303,-521.75,0.00022943,2]
[322068019,1712739069313,-500.0,0.00022943,2]
[322068020,1712739069323,-500.0,0.00022943,2]
[322068021,1712739069332,-500.0,0.00022943,2]
[322068022,1712739069351,-464.98727452,0.00022943,2]
[322068023,1712739069361,-774.63,0.00022943,2]
[322068024,1712739069380,-1362.67,0.00022943,2]
[322068025,1712739069390,-500.0,0.00022943,2]
[322068026,1712739069401,-3704.96,0.00022943,2]
[322068027,1712739069411,-500.0,0.00022943,2]
[322068028,1712739069422,-500.0,0.00022943,2]
[322068029,1712739069432,-500.0,0.00022943,2]
[322068030,1712739069441,-500.0,0.00022944,2]
[322068031,1712739069451,-500.0,0.00022944,2]
[322068032,1712739069460,-500.0,0.00022944,2]
[322068033,1712739069469,-500.0,0.00022944,2]
[322068034,1712739069479,-570.79,0.00022944,2]
[322068035,1712739069488,-500.0,0.00022944,2]
[322068036,1712739069498,-500.0,0.00022944,2]
[322068037,1712739069507,-613.93,0.00022944,2]
[322068038,1712739069520,-500.0,0.00022944,2]
[322068039,1712739069530,-500.0,0.00022944,2]
[322068040,1712739069540,-578.03,0.00022944,2]
[322068041,1712739069564,-500.0,0.00022944,2]
[322068042,1712739069575,-934.61,0.00022944,2]
[322068043,1712739069584,-500.0,0.00022944,2]
[322068044,1712739069594,-500.0,0.00022944,2]
[322068045,1712739069604,-616.26,0.00022944,2]
[322068046,1712739069614,-887.99,0.00022944,2]
[322068047,1712739069623,-548.96,0.00022944,2]
[322068048,1712739069633,-500.0,0.00022944,2]
[322068049,1712739069649,-898.59,0.00022944,2]
[322068050,1712739069664,-500.0,0.00022944,2]
[322068051,1712739069674,-711.11,0.00022944,2]
[322068052,1712739069684,-683.32,0.00022944,2]
[322068053,1712739069693,-500.0,0.00022944,2]
[322068054,1712739069703,-519.48,0.00022944,2]
[322068055,1712739069713,-500.0,0.00022944,2]
[322068056,1712739069723,-626.89,0.00022944,2]
[322068057,1712739069733,-964.25,0.00022944,2]
[322068058,1712739069744,-500.0,0.00022944,2]
[322068059,1712739069758,-671.33,0.00022944,2]
[322068060,1712739069768,-508.86,0.00022944,2]
[322068061,1712739069778,-547.4,0.00022944,2]
[322068062,1712739069787,-500.0,0.00022944,2]
[322068063,1712739069799,-529.97,0.00022944,2]
[322068064,1712739069809,-500.0,0.00022944,2]
[322068065,1712739069819,-565.15,0.00022944,2]
[322068066,1712739069830,-1021.16,0.00022944,2]
[322068067,1712739069840,-887.08,0.00022944,2]
[322068068,1712739069849,-500.0,0.00022944,2]
[322068069,1712739069859,-500.0,0.00022944,2]
[322068070,1712739069868,-500.0,0.00022944,2]
[322068071,1712739069878,-500.0,0.00022944,2]
[322068072,1712739069888,-513.89,0.00022944,2]
[322068073,1712739069898,-677.27,0.00022944,2]
[322068074,1712739069908,-885.74,0.00022944,2]
[322068075,1712739069918,-1445.14,0.00022944,2]
[322068076,1712739069927,-753.45,0.00022944,2]
[322068077,1712739069936,-500.0,0.00022944,2]
[322068078,1712739069946,-500.0,0.00022944,2]
[322068079,1712739069955,-500.0,0.00022944,2]
[322068080,1712739069966,-4935.81,0.00022944,2]
[322068081,1712739069976,-728.63,0.00022944,2]
[322068082,1712739069986,-500.0,0.00022944,2]
[322068083,1712739069996,-545.78,0.00022944,2]
[322068084,1712739070006,-500.0,0.00022944,2]
[322068085,1712739070016,-934.77,0.00022944,2]
[322068086,1712739070026,-500.0,0.00022944,2]
[322068087,1712739070036,-500.0,0.00022944,2]
[322068088,1712739070046,-537.35,0.00022944,2]
[322068089,1712739070056,-500.0,0.00022944,2]
[322068090,1712739070065,-515.08,0.00022944,2]
[322068091,1712739070076,-631.39,0.00022944,2]
[322068092,1712739070086,-2573.74,0.00022944,2]
[322068093,1712739070096,-500.0,0.00022944,2]
[322068094,1712739070105,-632.78,0.00022944,2]
[322068095,1712739070115,-500.0,0.00022944,2]
[322068096,1712739070124,-857.64,0.00022944,2]
[322068097,1712739070134,-500.0,0.00022944,2]
[322068098,1712739070143,-500.0,0.00022944,2]
[322068099,1712739070152,-500.0,0.00022944,2]
[322068100,1712739070162,-526.43,0.00022944,2]
[322068101,1712739070171,-500.0,0.00022944,2]
[322068102,1712739070181,-710.81,0.00022944,2]
[322068103,1712739070190,-500.0,0.00022944,2]
[322068104,1712739070200,-753.09,0.00022944,2]
[322068105,1712739070210,-500.0,0.00022944,2]
[322068106,1712739070219,-500.0,0.00022944,2]
[322068107,1712739070230,-1404.33,0.00022944,2]
[322068108,1712739070240,-500.0,0.00022944,2]
[322068109,1712739070250,-500.0,0.00022944,2]
[322068110,1712739070260,-500.0,0.00022944,2]
[322068111,1712739070270,-389.50370357,0.00022944,2]
[322068112,1712739070279,-627.71,0.00022944,2]
[322068113,1712739070289,-1405.94,0.00022944,2]
[322068114,1712739070298,-530.64,0.00022944,2]
[322068115,1712739070309,-151.0,0.00022946,7]
[322068116,1712739070319,-544.60661233,0.00023,2]
[322068117,1712739070332,-307.01960106,0.00023,2]
[322068118,1712739070342,-155.21370672,0.00023,2]
[322068119,1712739070352,-1778.9743103,0.00023,5]
[322068120,1712739070362,-300.0,0.00023,3]
[322068121,1712739070371,-150.0,0.00023,2]
[322068122,1712739070381,-798.0,0.00023013,2]
[322068123,1712739070391,-802.49,0.0002302,2]
[322068124,1712739070401,-1567.52,0.0002302,2]
[322068125,1712739070411,-395.56031077,0.0002302,2]
[322068126,1712739070421,-500.0,0.0002302,2]
[322068127,1712739070432,-500.0,0.0002302,2]
[322068128,1712739070442,-500.0,0.0002302,2]
[322068129,1712739070452,-602.03180547,0.0002302,2]
[322068130,1712739070461,-500.0,0.0002302,2]
[322068131,1712739070471,-1177.39,0.0002302,2]
[322068132,1712739070481,-996.62,0.0002302,2]
[322068133,1712739070491,-6692.18,0.0002302,2]
[322068134,1712739070501,-1135.82,0.0002302,2]
[322068135,1712739070511,-973.83,0.0002302,2]
[322068136,1712739070522,-10415.18,0.0002302,2]
[322068137,1712739070533,-500.0,0.0002302,2]
[322068138,1712739070543,-212.83655361,0.0002302,2]
[322068139,1712739070553,-500.0,0.00023217,2]
[322068140,1712739070563,-500.0,0.00023217,2]
[322068141,1712739070575,-500.0,0.00023217,2]
[322068142,1712739070586,-500.0,0.00023217,2]
[322068143,1712739070595,-500.0,0.00023217,2]
[322068144,1712739070605,-946.69,0.00023217,2]
[322068145,1712739070614,-1419.29,0.00023217,2]
[322068146,1712739070624,-500.0,0.00023217,2]
[322068147,1712739070634,-625.16,0.00023217,2]
[322068148,1712739070643,-1482.35,0.00023217,2]
[322068149,1712739070652,-500.0,0.00023217,2]
[322068150,1712739070661,-247.24739926,0.00023217,2]
[322068151,1712739070671,-861.14,0.00023217,2]
[322068152,1712739070680,-500.0,0.00023217,2]
[322068153,1712739070690,-528.57,0.00023217,2]
[322068154,1712739070699,-2120.71,0.00023217,2]
[322068155,1712739070709,-552.2,0.00023217,2]
[322068156,1712739070718,-500.0,0.00023217,2]
[322068157,1712739070727,-2408.96,0.00023217,2]
[322068158,1712739070737,-1276.57,0.00023217,2]
[322068159,1712739070748,-1217.14,0.00023217,2]
[322068160,1712739070757,-2123.86,0.00023217,2]
[322068161,1712739070767,-511.31,0.00023217,2]
[322068162,1712739070777,-572.02,0.00023217,2]
[322068163,1712739070945,-742.1,0.00023217,2]
[322068164,1712739070956,-1137.02,0.00023217,2]
[322068165,1712739070966,-1754.38,0.00023217,2]
[322068166,1712739070976,-984.81,0.00023217,2]
[322068167,1712739070986,-500.0,0.00023217,2]
[322068168,1712739070995,-612.58,0.00023217,2]
[322068169,1712739071006,-619.53,0.00023217,2]
[322068170,1712739071015,-500.0,0.00023217,2]
[322068171,1712739071025,-530.44,0.00023217,2]
[322068172,1712739071034,-1083.32,0.00023217,2]
[322068173,1712739071044,-500.0,0.00023217,2]
[322068174,1712739071054,-765.23,0.00023217,2]
[322068175,1712739071064,-500.0,0.00023217,2]
[322068176,1712739071077,-500.0,0.00023217,2]
[322068177,1712739071087,-1986.39,0.00023217,2]
[322068178,1712739071098,-521.75,0.00023217,2]
[322068179,1712739071107,-553.05027688,0.00023217,2]
[322068180,1712739071117,-500.0,0.00023217,2]
[322068181,1712739071127,-500.0,0.00023217,2]
[322068182,1712739071136,-774.63,0.00023217,2]
[322068183,1712739071146,-1362.67,0.00023217,2]
[322068184,1712739071156,-500.0,0.00023217,2]
[322068185,1712739071166,-3704.96,0.00023217,2]
[322068186,1712739071176,-500.0,0.00023217,2]
[322068187,1712739071186,-500.0,0.00023217,2]
[322068188,1712739071196,-500.0,0.00023217,2]
[322068189,1712739071206,-500.0,0.00023218,2]
[322068190,1712739071216,-500.0,0.00023218,2]
[322068191,1712739071226,-500.0,0.00023218,2]
[322068192,1712739071236,-500.0,0.00023218,2]
[322068193,1712739071247,-570.79,0.00023218,2]
[322068194,1712739071256,-500.0,0.00023218,2]
[322068195,1712739071267,-302.90441447,0.00023218,2]
[322068196,1712739071277,-613.93,0.00023218,2]
[322068197,1712739071287,-500.0,0.00023218,2]
[322068198,1712739071297,-500.0,0.00023218,2]
[322068199,1712739071307,-578.03,0.00023218,2]
[322068200,1712739071317,-500.0,0.00023218,2]
[322068201,1712739071330,-934.61,0.00023218,2]
[322068202,1712739071339,-500.0,0.00023218,2]
[322068203,1712739071349,-500.0,0.00023218,2]
[322068204,1712739071358,-616.26,0.00023218,2]
[322068205,1712739071368,-887.99,0.00023218,2]
[322068206,1712739071378,-548.96,0.00023218,2]
[322068207,1712739071388,-500.0,0.00023218,2]
[322068208,1712739071398,-898.59,0.00023218,2]
[322068209,1712739071407,-500.0,0.00023218,2]
[322068210,1712739071417,-711.11,0.00023218,2]
[322068211,1712739071427,-683.32,0.00023218,2]
[322068212,1712739071437,-500.0,0.00023218,2]
[322068213,1712739071447,-519.48,0.00023218,2]
[322068214,1712739071456,-500.0,0.00023218,2]
[322068215,1712739071465,-626.89,0.00023218,2]
[322068216,1712739071474,-964.25,0.00023218,2]
[322068217,1712739071483,-500.0,0.00023218,2]
[322068218,1712739071492,-671.33,0.00023218,2]
[322068219,1712739071502,-508.86,0.00023218,2]
[322068220,1712739071511,-547.4,0.00023218,2]
[322068221,1712739071521,-629.42171111,0.00023218,2]
[322068222,1712739071530,-529.97,0.00023218,2]
[322068223,1712739071540,-500.0,0.00023218,2]
[322068224,1712739071549,-565.15,0.00023218,2]
[322068225,1712739071558,-1021.16,0.00023218,2]
[322068226,1712739071568,-887.08,0.00023218,2]
[322068227,1712739071582,-500.0,0.00023218,2]
[322068228,1712739071591,-500.0,0.00023218,2]
[322068229,1712739071600,-500.0,0.00023218,2]
[322068230,1712739071610,-500.0,0.00023218,2]
[322068231,1712739071619,-513.89,0.00023218,2]
[322068232,1712739071629,-677.27,0.00023218,2]
[322068233,1712739071639,-885.74,0.00023218,2]
[322068234,1712739071648,-1445.14,0.00023218,2]
[322068235,1712739071657,-753.45,0.00023218,2]
[322068236,1712739071666,-500.0,0.00023218,2]
[322068237,1712739071676,-500.0,0.00023218,2]
[322068238,1712739071685,-500.0,0.00023218,2]
[322068239,1712739071694,-4935.81,0.00023218,2]
[322068240,1712739071704,-728.63,0.00023218,2]
[322068241,1712739071714,-500.0,0.00023218,2]
[322068242,1712739071724,-545.78,0.00023218,2]
[322068243,1712739071734,-500.0,0.00023218,2]
[322068244,1712739071745,-934.77,0.00023218,2]
[322068245,1712739071755,-500.0,0.00023218,2]
[322068246,1712739071765,-500.0,0.00023218,2]
[322068247,1712739071775,-537.35,0.00023218,2]
[322068248,1712739071786,-500.0,0.00023218,2]
[322068249,1712739071797,-515.08,0.00023218,2]
[322068250,1712739071807,-631.39,0.00023218,2]
[322068251,1712739071817,-2573.74,0.00023218,2]
[322068252,1712739071830,-500.0,0.00023218,2]
[322068253,1712739071839,-632.78,0.00023218,2]
[322068254,1712739071849,-500.0,0.00023218,2]
[322068255,1712739071858,-857.64,0.00023218,2]
[322068256,1712739071869,-500.0,0.00023218,2]
[322068257,1712739071879,-500.0,0.00023218,2]
[322068258,1712739071888,-500.0,0.00023218,2]
[322068259,1712739071898,-526.43,0.00023218,2]
[322068260,1712739071908,-500.0,0.00023218,2]
[322068261,1712739071918,-710.81,0.00023218,2]
[322068262,1712739071927,-500.0,0.00023218,2]
[322068263,1712739071937,-753.09,0.00023218,2]
[322068264,1712739071947,-500.0,0.00023218,2]
[322068265,1712739071957,-500.0,0.00023218,2]
[322068266,1712739071967,-1404.33,0.00023218,2]
[322068267,1712739071977,-500.0,0.00023218,2]
[322068268,1712739071987,-500.0,0.00023218,2]
[322068269,1712739071996,-464.07004192,0.00023218,2]
[322068270,1712739072006,-627.71,0.00023218,2]
[322068271,1712739072016,-1405.94,0.00023218,2]
[322068272,1712739072026,-152.0,0.00023246,5]
[322068273,1712739072035,-802.49,0.00023294,2]
[322068274,1712739072045,-1567.52,0.00023294,2]
[322068275,1712739072055,-500.0,0.00023294,2]
[322068276,1712739072064,-500.0,0.00023294,2]
[322068277,1712739072075,-500.0,0.00023294,2]
[322068278,1712739072086,-500.0,0.00023294,2]
[322068279,1712739072095,-1177.39,0.00023294,2]
[322068280,1712739072104,-996.62,0.00023294,2]
[322068281,1712739072114,-6692.18,0.00023294,2]
[322068282,1712739072123,-1135.82,0.00023294,2]
[322068283,1712739072132,-973.83,0.00023294,2]
[322068284,1712739072141,-10415.18,0.00023294,2]
[322068285,1712739072151,-500.0,0.00023294,2]
[322068286,1712739072161,-3300.0,0.00023368,2]
[322068287,1712739072170,-150.0,0.00023374,2]
[322068288,1712739072180,-500.0,0.00023491,2]
[322068289,1712739072189,-500.0,0.00023491,2]
[322068290,1712739072198,-500.0,0.00023491,2]
[322068291,1712739072208,-500.0,0.00023491,2]
[322068292,1712739072217,-500.0,0.00023491,2]
[322068293,1712739072227,-946.69,0.00023491,2]
[322068294,1712739072236,-1419.29,0.00023491,2]
[322068295,1712739072246,-500.0,0.00023491,2]
[322068296,1712739072256,-625.16,0.00023491,2]
[322068297,1712739072265,-1482.35,0.00023491,2]
[322068298,1712739072275,-500.0,0.00023491,2]
[322068299,1712739072284,-861.14,0.00023491,2]
[322068300,1712739072293,-500.0,0.00023491,2]
[322068301,1712739072303,-528.57,0.00023491,2]
[322068302,1712739072313,-2120.71,0.00023491,2]
[322068303,1712739072322,-552.2,0.00023491,2]
[322068304,1712739072336,-500.0,0.00023491,2]
[322068305,1712739072345,-2408.96,0.00023491,2]
[322068306,1712739072355,-1276.57,0.00023491,2]
[322068307,1712739072365,-1217.14,0.00023491,2]
[322068308,1712739072375,-2123.86,0.00023491,2]
[322068309,1712739072384,-511.31,0.00023491,2]
[322068310,1712739072393,-572.02,0.00023491,2]
[322068311,1712739072402,-742.1,0.00023491,2]
[322068312,1712739072412,-1137.02,0.00023491,2]
[322068313,1712739072421,-1754.38,0.00023491,2]
[322068314,1712739072431,-984.81,0.00023491,2]
[322068315,1712739072441,-500.0,0.00023491,2]
[322068316,1712739072450,-612.58,0.00023491,2]
[322068317,1712739072459,-619.53,0.00023491,2]
[322068318,1712739072469,-229.30250536,0.00023491,2]
[322068319,1712739072479,-530.44,0.00023491,2]
[322068320,1712739072490,-1083.32,0.00023491,2]
[322068321,1712739072499,-500.0,0.00023491,2]
[322068322,1712739072510,-765.23,0.00023491,2]
[322068323,1712739072519,-500.0,0.00023491,2]
[322068324,1712739072528,-500.0,0.00023491,2]
[322068325,1712739072538,-1986.39,0.00023491,2]
[322068326,1712739072547,-521.75,0.00023491,2]
[322068327,1712739072557,-500.0,0.00023491,2]
[322068328,1712739072567,-500.0,0.00023491,2]
[322068329,1712739072576,-774.63,0.00023491,2]
[322068330,1712739072585,-1362.67,0.00023491,2]
[322068331,1712739072595,-500.0,0.00023491,2]
[322068332,1712739072609,-3704.96,0.00023491,2]
[322068333,1712739072618,-500.0,0.00023491,2]
[322068334,1712739072630,-500.0,0.00023491,2]
[322068335,1712739072641,-500.0,0.00023491,2]
[322068336,1712739072651,-500.0,0.00023492,2]
[322068337,1712739072664,-500.0,0.00023492,2]
[322068338,1712739072673,-247.72196204,0.00023492,2]
[322068339,1712739072684,-500.0,0.00023492,2]
[322068340,1712739072694,-570.79,0.00023492,2]
[322068341,1712739072704,-500.0,0.00023492,2]
[322068342,1712739072714,-613.93,0.00023492,2]
[322068343,1712739072724,-500.0,0.00023492,2]
[322068344,1712739072741,-500.0,0.00023492,2]
[322068345,1712739072752,-578.03,0.00023492,2]
[322068346,1712739072761,-500.0,0.00023492,2]
[322068347,1712739072770,-934.61,0.00023492,2]
[322068348,1712739072779,-500.0,0.00023492,2]
[322068349,1712739072790,-460.84730439,0.00023492,2]
[322068350,1712739072803,-616.26,0.00023492,2]
[322068351,1712739072812,-887.99,0.00023492,2]
[322068352,1712739072821,-548.96,0.00023492,2]
[322068353,1712739072832,-500.0,0.00023492,2]
[322068354,1712739072842,-898.59,0.00023492,2]
[322068355,1712739072852,-500.0,0.00023492,2]
[322068356,1712739072861,-711.11,0.00023492,2]
[322068357,1712739072871,-683.32,0.00023492,2]
[322068358,1712739072881,-500.0,0.00023492,2]
[322068359,1712739072891,-519.48,0.00023492,2]
[322068360,1712739072901,-500.0,0.00023492,2]
[322068361,1712739072910,-626.89,0.00023492,2]
[322068362,1712739072920,-964.25,0.00023492,2]
[322068363,1712739072929,-500.0,0.00023492,2]
[322068364,1712739072939,-671.33,0.00023492,2]
[322068365,1712739072948,-508.86,0.00023492,2]
[322068366,1712739072957,-547.4,0.00023492,2]
[322068367,1712739072967,-529.97,0.00023492,2]
[322068368,1712739072976,-500.0,0.00023492,2]
[322068369,1712739072986,-565.15,0.00023492,2]
[322068370,1712739072996,-1021.16,0.00023492,2]
[322068371,1712739073005,-887.08,0.00023492,2]
[322068372,1712739073015,-500.0,0.00023492,2]
[322068373,1712739073027,-500.0,0.00023492,2]
[322068374,1712739073042,-500.0,0.00023492,2]
[322068375,1712739073057,-279.95656162,0.00023492,2]
[322068376,1712739073067,-513.89,0.00023492,2]
[322068377,1712739073083,-677.27,0.00023492,2]
[322068378,1712739073093,-885.74,0.00023492,2]
[322068379,1712739073102,-1445.14,0.00023492,2]
[322068380,1712739073112,-753.45,0.00023492,2]
[322068381,1712739073122,-500.0,0.00023492,2]
[322068382,1712739073131,-500.0,0.00023492,2]
[322068383,1712739073143,-500.0,0.00023492,2]
[322068384,1712739073152,-4935.81,0.00023492,2]
[322068385,1712739073162,-728.63,0.00023492,2]
[322068386,1712739073172,-500.0,0.00023492,2]
[322068387,1712739073181,-545.78,0.00023492,2]
[322068388,1712739073191,-500.0,0.00023492,2]
[322068389,1712739073203,-934.77,0.00023492,2]
[322068390,1712739073212,-500.0,0.00023492,2]
[322068391,1712739073221,-500.0,0.00023492,2]
[322068392,1712739073231,-537.35,0.00023492,2]
[322068393,1712739073240,-500.0,0.00023492,2]
[322068394,1712739073250,-515.08,0.00023492,2]
[322068395,1712739073259,-631.39,0.00023492,2]
[322068396,1712739073269,-2573.74,0.00023492,2]
[322068397,1712739073278,-500.0,0.00023492,2]
[322068398,1712739073288,-632.78,0.00023492,2]
[322068399,1712739073297,-500.0,0.00023492,2]
[322068400,1712739073307,-857.64,0.00023492,2]
[322068401,1712739073318,-500.0,0.00023492,2]
[322068402,1712739073330,-500.0,0.00023492,2]
[322068403,1712739073339,-500.0,0.00023492,2]
[322068404,1712739073348,-526.43,0.00023492,2]
[322068405,1712739073358,-500.0,0.00023492,2]